fUSD/lending_fUSD_20251001
["ID","MTS","AMOUNT","RATE_DAILY","PERIOD"]
[388645976,1759296663610,-150.0,0.00020201,2]
[388645977,1759296663620,-158.0,0.0002025,2]
[388645978,1759296663630,-250.0,0.00020271,2]
[388645979,1759296663640,-151.01,0.00020274,2]
[388645980,1759296663655,-283.86655729,0.00020274,2]
[388645981,1759296663670,-1637.40648366,0.00020299,2]
[388645982,1759296663681,-411.80132182,0.000203,11]
[388645983,1759296663693,-700.0,0.00020322,2]
[388645984,1759296663705,-400.0,0.00020322,2]
[388645985,1759296663715,-226.21,0.00020344,2]
[388645986,1759296663726,-150.0,0.00020351,2]
[388645987,1759296663737,-960.0,0.00020365,2]
[388645988,1759296663748,-818.11,0.00020384,2]
[388645989,1759296663758,-480.1,0.00020384,2]
[388645990,1759296663769,-806.89,0.00020384,2]
[388645991,1759296663780,-473.55,0.00020384,2]
[388645992,1759296663790,-806.89,0.00020384,2]
[388645993,1759296663800,-473.55,0.00020384,2]
[388645994,1759296663810,-806.89,0.00020384,2]
[388645995,1759296663820,-473.55,0.00020384,2]
[388645996,1759296663830,-364.88,0.00020384,2]
[388645997,1759296663839,-650.9,0.00020384,2]
[388645998,1759296663850,-500.0,0.00020432,2]
[388645999,1759296663860,-155.0,0.00020459,2]
[388646000,1759296663870,-187.58,0.0002047,2]
[388646001,1759296663880,-20041.75106456,0.00020492,2]
[388646002,1759296663891,-264.13984,0.0002051,2]
[388646003,1759296663901,-597.91,0.000206,7]
[388646004,1759296663911,-28299.50019438,0.00020603,2]
[388646005,1759296663921,-2134.36573271,0.00020632,2]
[388646006,1759296663931,-411.80132182,0.00020699,12]
[388646007,1759296663942,-500.0,0.00020706,2]
[388646008,1759296663952,-700.0,0.00020772,2]
[388646009,1759296663962,-630.80881729,0.00020859,2]
[388646010,1759296663972,-283.2,0.00020866,2]
[388646011,1759296663981,-166.89,0.00020869,2]
[388646012,1759296663991,-500.0,0.0002098,2]
[388646013,1759296664002,-412.8,0.00020986,2]
[388646014,1759296664012,-1007.0,0.00021,4]
[388646015,1759296664022,-4000.0,0.00021,4]
[388646016,1759296664032,-264.13984,0.0002101,2]
[388646017,1759296664042,-20041.75106456,0.00021093,2]
[388646018,1759296664055,-411.80132182,0.00021099,14]
[388646019,1759296664064,-1314.17471114,0.000211,2]
[388646020,1759296664074,-175.93,0.00021144,4]
[388646021,1759296664084,-1091.9776473,0.00021167,2]
[388646022,1759296664095,-63542.1147477,0.00021168,2]
[388646023,1759296664105,-226.21,0.00021229,2]
[388646024,1759296664115,-1924.62356906,0.00021242,2]
[388646025,1759296664125,-4745.97,0.0002125,4]
[388646026,1759296664136,-500.0,0.00021254,2]
[388646027,1759296664146,-473.8,0.00021316,2]
[388646028,1759296664156,-346.92554585,0.00021415,2]
[388646029,1759296664167,-154.0,0.0002143,2]
[388646030,1759296664177,-301.41,0.00021438,2]
[388646031,1759296664187,-334.9,0.00021438,2]
[388646032,1759296664401,-287.61899177,0.00021439,2]
[388646033,1759296664412,-5000.0,0.0002144,4]
[388646034,1759296664424,-411.80132182,0.00021498,15]
[388646035,1759296664433,-1000.0,0.000215,2]
[388646036,1759296664442,-500.0,0.00021528,2]
[388646037,1759296664451,-1366.17310418,0.00021551,2]
[388646038,1759296664460,-1109.32250209,0.00021551,2]
[388646039,1759296664470,-3070.0,0.00021556,2]
[388646040,1759296664479,-283.2,0.00021562,2]
[388646041,1759296664489,-187.58,0.00021562,2]
[388646042,1759296664499,-630.80881729,0.00021582,2]
[388646043,1759296664509,-19403.98,0.000216,2]
[388646044,1759296664519,-225.83,0.000216,2]
[388646045,1759296664528,-707.75,0.000216,2]
[388646046,1759296664538,-154618.91732871,0.00021617,2]
[388646047,1759296664548,-300.0,0.00021619,2]
[388646048,1759296664557,-300.0,0.00021619,2]
[388646049,1759296664566,-305.85129817,0.00021619,2]
[388646050,1759296664575,-300.0,0.00021619,2]
[388646051,1759296664584,-645479.29882322,0.0002162,7]
[388646052,1759296664593,-808.54269377,0.00021692,2]
[388646053,1759296664603,-400.33652254,0.00021692,2]
[388646054,1759296664613,-20041.75106456,0.00021695,2]
[388646055,1759296664622,-243.6531473,0.00021698,2]
[388646056,1759296664633,-14178.1622398,0.00021699,2]
[388646057,1759296664643,-412.8,0.00021773,2]
[388646058,1759296664652,-500.0,0.00021802,2]
[388646059,1759296664668,-1637.40648366,0.0002181,2]
[388646060,1759296664687,-700.0,0.00021868,2]
[388646061,1759296664699,-411.80132182,0.00021898,16]
[388646062,1759296664710,-207.22392399,0.00021917,2]
[388646063,1759296664721,-5000.0,0.00021918,2]
[388646064,1759296664731,-200.0,0.00021918,2]
[388646065,1759296664741,-493.67,0.00021945,30]
[388646066,1759296664752,-150.0,0.00021995,4]
[388646067,1759296664762,-158.93570811,0.00021995,4]
[388646068,1759296664772,-150.0,0.00021995,4]
[388646069,1759296664782,-150.0,0.00021995,4]
[388646070,1759296664793,-271.04849986,0.00021995,4]
[388646071,1759296664804,-150.0,0.00021995,4]
[388646072,1759296664813,-159.5005648,0.00021995,4]
[388646073,1759296664823,-299.84574563,0.00021995,4]
[388646074,1759296664834,-2636.0,0.00022,2]
[388646075,1759296664844,-145382.88,0.00022,7]
[388646076,1759296664856,-25743.32,0.00022,2]
[388646077,1759296664865,-1001.0,0.00022,4]
[388646078,1759296664874,-170.0,0.00022,2]
[388646079,1759296664884,-317.0,0.00022,2]
[388646080,1759296664895,-178.05,0.00022,2]
[388646081,1759296664904,-4000.0,0.00022,4]
[388646082,1759296664915,-1306.0,0.00022044,2]
[388646083,1759296664925,-603.0,0.00022044,2]
[388646084,1759296664934,-570.0,0.00022044,2]
[388646085,1759296664943,-1584.0,0.00022044,2]
[388646086,1759296664953,-817.0,0.00022044,2]
[388646087,1759296664962,-4234.0,0.00022044,2]
[388646088,1759296664972,-3399.0,0.00022044,2]
[388646089,1759296664982,-787.0,0.00022044,2]
[388646090,1759296664991,-2045.0,0.00022044,2]
[388646091,1759296665001,-6234.0,0.00022044,2]
[388646092,1759296665011,-500.0,0.00022076,2]
[388646093,1759296665022,-600.0,0.0002211,2]
[388646094,1759296665031,-300.0,0.00022129,2]
[388646095,1759296665041,-317.0,0.00022192,7]
[388646096,1759296665050,-283.2,0.00022258,2]
[388646097,1759296665059,-20041.75106456,0.00022296,2]
[388646098,1759296665069,-411.80132182,0.00022297,18]
[388646099,1759296665079,-500.92213442,0.000223,2]
[388646100,1759296665089,-500.0,0.000223,2]
[388646101,1759296665099,-500.97409215,0.000223,2]
[388646102,1759296665108,-217.06105105,0.000223,2]
[388646103,1759296665118,-500.0,0.000223,2]
[388646104,1759296665127,-461.88360028,0.000223,2]
[388646105,1759296665137,-500.0,0.000223,2]
[388646106,1759296665147,-501.00735924,0.000223,2]
[388646107,1759296665157,-501.39464464,0.000223,2]
[388646108,1759296665167,-175.53,0.00022302,2]
[388646109,1759296665177,-300.0,0.00022302,2]
[388646110,1759296665186,-302.52,0.00022302,2]
[388646111,1759296665196,-1196.36,0.00022302,2]
[388646112,1759296665205,-300.0,0.00022302,2]
[388646113,1759296665215,-412.48,0.00022302,2]
[388646114,1759296665225,-150.0,0.00022302,2]
[388646115,1759296665234,-175.53,0.00022302,2]
[388646116,1759296665244,-150.0,0.00022302,2]
[388646117,1759296665253,-1196.36,0.00022302,2]
[388646118,1759296665263,-150.0,0.00022302,2]
[388646119,1759296665272,-412.48,0.00022302,2]
[388646120,1759296665282,-169.83,0.00022302,2]
[388646121,1759296665295,-303.68,0.00022302,2]
[388646122,1759296665305,-412.48,0.00022302,2]
[388646123,1759296665315,-151.39,0.00022302,2]
[388646124,1759296665324,-1196.36,0.00022302,2]
[388646125,1759296665334,-167.75,0.00022302,2]
[388646126,1759296665344,-630.80881729,0.00022306,2]
[388646127,1759296665353,-500.0,0.0002235,2]
[388646128,1759296665363,-161.35260951,0.00022355,2]
[388646129,1759296665374,-500.77092064,0.00022387,2]
[388646130,1759296665384,-500.71557788,0.000224,2]
[388646131,1759296665394,-500.51326608,0.000224,2]
[388646132,1759296665404,-500.21350621,0.000224,2]
[388646133,1759296665414,-500.70406518,0.000224,2]
[388646134,1759296665424,-500.77642593,0.000224,2]
[388646135,1759296665434,-501.04101219,0.000224,2]
[388646136,1759296665444,-500.33382306,0.000224,2]
[388646137,1759296665453,-500.85509184,0.000224,2]
[388646138,1759296665464,-500.5404542,0.000224,2]
[388646139,1759296665474,-328.74767202,0.000224,2]
[388646140,1759296665484,-500.96065553,0.000224,2]
[388646141,1759296665494,-502.35240715,0.000224,2]
[388646142,1759296665504,-1896.07,0.000224,7]
[388646143,1759296665514,-2888.429,0.000224,2]
[388646144,1759296665524,-300.877,0.000224,2]
[388646145,1759296665534,-1924.62356906,0.00022414,2]
[388646146,1759296665546,-168.0,0.00022459,2]
[388646147,1759296665555,-297.0,0.00022477,2]
[388646148,1759296665564,-168.0,0.00022478,2]
[388646149,1759296665573,-300.0,0.00022491,2]
[388646150,1759296665583,-1001.0,0.000225,4]
[388646151,1759296665592,-1314.17471114,0.000225,2]
[388646152,1759296665601,-297.0,0.00022518,2]
[388646153,1759296665610,-347.28,0.00022525,2]
[388646154,1759296665620,-215.0,0.0002254,2]
[388646155,1759296665630,-215.0,0.0002254,2]
[388646156,1759296665641,-215.0,0.0002254,2]
[388646157,1759296665651,-215.0,0.0002254,2]
[388646158,1759296665664,-215.0,0.0002254,2]
[388646159,1759296665674,-215.0,0.0002254,2]
[388646160,1759296665683,-215.0,0.0002254,2]
[388646161,1759296665692,-215.0,0.0002254,2]
[388646162,1759296665702,-215.0,0.0002254,2]
[388646163,1759296665712,-215.0,0.0002254,2]
[388646164,1759296665722,-215.0,0.0002254,2]
[388646165,1759296665732,-215.0,0.0002254,2]
[388646166,1759296665741,-215.0,0.0002254,2]
[388646167,1759296665751,-215.0,0.0002254,2]
[388646168,1759296665761,-215.0,0.0002254,2]
[388646169,1759296665770,-668.0,0.0002254,2]
[388646170,1759296665779,-668.0,0.0002254,2]
[388646171,1759296665789,-668.0,0.0002254,2]
[388646172,1759296665798,-668.0,0.0002254,2]
[388646173,1759296665812,-668.0,0.0002254,2]
[388646174,1759296665821,-668.0,0.0002254,2]
[388646175,1759296665831,-668.0,0.0002254,2]
[388646176,1759296665840,-668.0,0.0002254,2]
[388646177,1759296665850,-668.0,0.0002254,2]
[388646178,1759296665860,-668.0,0.0002254,2]
[388646179,1759296665870,-668.0,0.0002254,2]
[388646180,1759296665879,-251.0,0.0002254,2]
[388646181,1759296665889,-251.0,0.0002254,2]
[388646182,1759296665898,-251.0,0.0002254,2]
[388646183,1759296665907,-251.0,0.0002254,2]
[388646184,1759296665916,-251.0,0.0002254,2]
[388646185,1759296665926,-251.0,0.0002254,2]
[388646186,1759296665935,-251.0,0.0002254,2]
[388646187,1759296665945,-251.0,0.0002254,2]
[388646188,1759296665955,-251.0,0.0002254,2]
[388646189,1759296665964,-251.0,0.0002254,2]
[388646190,1759296665974,-251.0,0.0002254,2]
[388646191,1759296665983,-251.0,0.0002254,2]
[388646192,1759296665993,-746.0,0.0002254,2]
[388646193,1759296666003,-746.0,0.0002254,2]
[388646194,1759296666012,-746.0,0.0002254,2]
[388646195,1759296666022,-746.0,0.0002254,2]
[388646196,1759296666032,-746.0,0.0002254,2]
[388646197,1759296666041,-746.0,0.0002254,2]
[388646198,1759296666051,-746.0,0.0002254,2]
[388646199,1759296666061,-746.0,0.0002254,2]
[388646200,1759296666070,-746.0,0.0002254,2]
[388646201,1759296666079,-746.0,0.0002254,2]
[388646202,1759296666094,-275.0,0.0002254,2]
[388646203,1759296666104,-275.0,0.0002254,2]
[388646204,1759296666114,-275.0,0.0002254,2]
[388646205,1759296666124,-275.0,0.0002254,2]
[388646206,1759296666134,-275.0,0.0002254,2]
[388646207,1759296666143,-275.0,0.0002254,2]
[388646208,1759296666153,-275.0,0.0002254,2]
[388646209,1759296666163,-275.0,0.0002254,2]
[388646210,1759296666172,-275.0,0.0002254,2]
[388646211,1759296666182,-275.0,0.0002254,2]
[388646212,1759296666192,-275.0,0.0002254,2]
[388646213,1759296666202,-275.0,0.0002254,2]
[388646214,1759296666211,-638.0,0.0002254,2]
[388646215,1759296666220,-638.0,0.0002254,2]
[388646216,1759296666231,-638.0,0.0002254,2]
[388646217,1759296666240,-638.0,0.0002254,2]
[388646218,1759296666249,-638.0,0.0002254,2]
[388646219,1759296666258,-638.0,0.0002254,2]
[388646220,1759296666267,-638.0,0.0002254,2]
[388646221,1759296666277,-638.0,0.0002254,2]
[388646222,1759296666287,-638.0,0.0002254,2]
[388646223,1759296666296,-638.0,0.0002254,2]
[388646224,1759296666306,-412.8,0.0002256,2]
[388646225,1759296666315,-1231.63,0.00022562,2]
[388646226,1759296666328,-150.99,0.00022562,2]
[388646227,1759296666338,-4276.23,0.00022562,2]
[388646228,1759296666347,-9999.99,0.00022562,2]
[388646229,1759296666357,-150.99,0.00022562,2]
[388646230,1759296666367,-303.0,0.0002262,2]
[388646231,1759296666376,-500.0,0.00022624,2]
[388646232,1759296666386,-283.104,0.00022655,2]
[388646233,1759296666395,-150.299,0.00022655,2]
[388646234,1759296666405,-150.202,0.00022655,2]
[388646235,1759296666414,-150.946,0.00022655,2]
[388646236,1759296666424,-150.153,0.00022655,2]
[388646237,1759296666434,-150.098,0.00022655,2]
[388646238,1759296666443,-152.0,0.00022655,2]
[388646239,1759296666452,-600.0,0.00022658,2]
[388646240,1759296666462,-297.0,0.00022671,2]
[388646241,1759296666471,-258.0,0.00022692,2]
[388646242,1759296666480,-258.0,0.00022692,2]
[388646243,1759296666490,-258.0,0.00022692,2]
[388646244,1759296666499,-258.0,0.00022692,2]
[388646245,1759296666509,-258.0,0.00022692,2]
[388646246,1759296666518,-258.0,0.00022692,2]
[388646247,1759296666528,-258.0,0.00022692,2]
[388646248,1759296666537,-258.0,0.00022692,2]
[388646249,1759296666548,-258.0,0.00022692,2]
[388646250,1759296666558,-258.0,0.00022692,2]
[388646251,1759296666567,-258.0,0.00022692,2]
[388646252,1759296666576,-258.0,0.00022692,2]
[388646253,1759296666586,-474.0,0.00022692,2]
[388646254,1759296666595,-474.0,0.00022692,2]
[388646255,1759296666604,-474.0,0.00022692,2]
[388646256,1759296666614,-474.0,0.00022692,2]
[388646257,1759296666623,-474.0,0.00022692,2]
[388646258,1759296666633,-474.0,0.00022692,2]
[388646259,1759296666643,-474.0,0.00022692,2]
[388646260,1759296666652,-474.0,0.00022692,2]
[388646261,1759296666664,-474.0,0.00022692,2]
[388646262,1759296666674,-474.0,0.00022692,2]
[388646263,1759296666683,-280.0,0.00022692,2]
[388646264,1759296666692,-280.0,0.00022692,2]
[388646265,1759296666701,-280.0,0.00022692,2]
[388646266,1759296666713,-280.0,0.00022692,2]
[388646267,1759296666723,-280.0,0.00022692,2]
[388646268,1759296666732,-280.0,0.00022692,2]
[388646269,1759296666746,-280.0,0.00022692,2]
[388646270,1759296666755,-280.0,0.00022692,2]
[388646271,1759296666765,-280.0,0.00022692,2]
[388646272,1759296666774,-280.0,0.00022692,2]
[388646273,1759296666783,-280.0,0.00022692,2]
[388646274,1759296666793,-582.0,0.00022692,2]
[388646275,1759296666803,-582.0,0.00022692,2]
[388646276,1759296666814,-582.0,0.00022692,2]
[388646277,1759296666823,-582.0,0.00022692,2]
[388646278,1759296666834,-582.0,0.00022692,2]
[388646279,1759296666844,-582.0,0.00022692,2]
[388646280,1759296666854,-582.0,0.00022692,2]
[388646281,1759296666863,-582.0,0.00022692,2]
[388646282,1759296666873,-582.0,0.00022692,2]
[388646283,1759296666883,-249.0,0.00022692,2]
[388646284,1759296666892,-249.0,0.00022692,2]
[388646285,1759296666902,-249.0,0.00022692,2]
[388646286,1759296666912,-249.0,0.00022692,2]
[388646287,1759296666922,-249.0,0.00022692,2]
[388646288,1759296666932,-249.0,0.00022692,2]
[388646289,1759296666942,-249.0,0.00022692,2]
[388646290,1759296666951,-249.0,0.00022692,2]
[388646291,1759296666961,-249.0,0.00022692,2]
[388646292,1759296666970,-367.0,0.00022692,2]
[388646293,1759296666979,-367.0,0.00022692,2]
[388646294,1759296666989,-367.0,0.00022692,2]
[388646295,1759296667003,-367.0,0.00022692,2]
[388646296,1759296667017,-367.0,0.00022692,2]
[388646297,1759296667027,-367.0,0.00022692,2]
[388646298,1759296667037,-367.0,0.00022692,2]
[388646299,1759296667046,-367.0,0.00022692,2]
[388646300,1759296667056,-153.0,0.00022692,2]
[388646301,1759296667065,-153.0,0.00022692,2]
[388646302,1759296667075,-153.0,0.00022692,2]
[388646303,1759296667084,-297.0,0.00022693,2]
[388646304,1759296667094,-411.80132182,0.00022697,19]
[388646305,1759296667104,-168.0,0.00022715,2]
[388646306,1759296667119,-156.31,0.0002278,2]
[388646307,1759296667129,-359.76179104,0.00022784,2]
[388646308,1759296667139,-348.36451129,0.00022808,2]
[388646309,1759296667149,-1000.77895014,0.00022848,2]
[388646310,1759296667158,-1004.50803345,0.00022848,2]
[388646311,1759296667168,-1000.7555395,0.00022848,2]
[388646312,1759296667178,-20041.75106456,0.00022897,2]
[388646313,1759296667188,-320.0,0.00022898,2]
[388646314,1759296667198,-156.31,0.00022905,2]
[388646315,1759296667208,-297.0,0.00022924,2]
[388646316,1759296667217,-297.0,0.00022944,2]
[388646317,1759296667227,-283.2,0.00022953,2]
[388646318,1759296667236,-700.0,0.00022963,2]
[388646319,1759296667246,-297.0,0.0002297,2]
[388646320,1759296667254,-1000.0,0.00023,5]
[388646321,1759296667263,-1000.0,0.00023,5]
[388646322,1759296667273,-159.0,0.00023,5]
[388646323,1759296667283,-159.0,0.00023,5]
[388646324,1759296667293,-159.0,0.00023,5]
[388646325,1759296667303,-4000.0,0.00023,4]
[388646326,1759296667316,-5022.0,0.00023012,2]
[388646327,1759296667325,-170.0,0.00023014,7]
[388646328,1759296667335,-317.0,0.00023014,7]
[388646329,1759296667345,-301.49626013,0.00023014,2]
[388646330,1759296667355,-630.80881729,0.00023029,2]
[388646331,1759296667364,-168.0,0.00023094,2]
[388646332,1759296667373,-411.80132182,0.00023097,21]
[388646333,1759296667383,-145382.88,0.000231,7]
[388646334,1759296667392,-25743.32,0.000231,2]
[388646335,1759296667402,-297.0,0.00023101,2]
[388646336,1759296667411,-170.55,0.00023124,2]
[388646337,1759296667420,-412.48,0.00023124,2]
[388646338,1759296667429,-333.68,0.00023124,2]
[388646339,1759296667439,-412.56,0.00023124,2]
[388646340,1759296667448,-1207.22,0.00023124,2]
[388646341,1759296667461,-412.48,0.00023124,2]
[388646342,1759296667471,-412.48,0.00023124,2]
[388646343,1759296667480,-412.48,0.00023124,2]
[388646344,1759296667490,-412.48,0.00023124,2]
[388646345,1759296667499,-168.0,0.00023161,2]
[388646346,1759296667508,-600.0,0.00023206,2]
[388646347,1759296667519,-150.0,0.00023216,4]
[388646348,1759296667528,-150.0,0.00023216,4]
[388646349,1759296667538,-1101.69,0.000233,2]
[388646350,1759296667547,-1637.40648366,0.0002332,2]
[388646351,1759296667556,-4563.0,0.00023332,2]
[388646352,1759296667565,-412.8,0.00023347,2]
[388646353,1759296667575,-160.00508668,0.00023396,2]
[388646354,1759296667584,-178.05,0.000234,2]
[388646355,1759296667593,-5022.0,0.00023462,2]
[388646356,1759296667602,-16877.32790728,0.00023495,2]
[388646357,1759296667611,-266537.47436549,0.00023495,3]
[388646358,1759296667621,-411.80132182,0.00023496,22]
[388646359,1759296667630,-20041.75106456,0.00023499,2]
[388646360,1759296667639,-1896.07,0.000235,7]
[388646361,1759296667648,-1924.62356906,0.00023585,2]
[388646362,1759296667657,-283.2,0.00023649,2]
[388646363,1759296667671,-19403.98,0.000237,2]
[388646364,1759296667680,-225.83,0.000237,2]
[388646365,1759296667689,-707.75,0.000237,2]
[388646366,1759296667699,-630.80881729,0.00023753,2]
[388646367,1759296667709,-600.0,0.00023754,2]
[388646368,1759296667719,-1101.69,0.000238,2]
[388646369,1759296667730,-296.0,0.000238,2]
[388646370,1759296667739,-497.02,0.00023836,2]
[388646371,1759296667749,-411.80132182,0.00023896,23]
[388646372,1759296667758,-19403.98,0.000239,2]
[388646373,1759296667767,-225.83,0.000239,2]
[388646374,1759296667777,-707.75,0.000239,2]
[388646375,1759296667786,-1314.17471114,0.000239,2]
[388646376,1759296667795,-7413.15858344,0.00023921,2]
[388646377,1759296667805,-4000.0,0.00024,4]
[388646378,1759296667815,-315.11336,0.00024,2]
[388646379,1759296667824,-190680.5568546,0.00024,2]
[388646380,1759296667833,-1101.69,0.00024,2]
[388646381,1759296667842,-2000.0,0.00024,2]
[388646382,1759296667852,-5349.33983313,0.00024,2]
[388646383,1759296667862,-700.0,0.00024059,2]
[388646384,1759296667871,-171.2420873,0.00024094,7]
[388646385,1759296667882,-20041.75106456,0.000241,2]
[388646386,1759296667892,-412.8,0.00024134,2]
[388646387,1759296667902,-373.07297731,0.00024153,2]
[388646388,1759296667911,-322.0,0.00024164,7]
[388646389,1759296667921,-145382.88,0.000242,7]
[388646390,1759296667931,-25743.32,0.000242,2]
[388646391,1759296667940,-168.0,0.00024257,2]
[388646392,1759296667950,-411.80132182,0.00024295,25]
[388646393,1759296667959,-283.2,0.00024345,2]
[388646394,1759296667967,-175.14007686,0.00024363,2]
[388646395,1759296667976,-1148.73866243,0.00024363,2]
[388646396,1759296667985,-2134.36573271,0.00024363,2]
[388646397,1759296667994,-1000.0,0.00024383,3]
[388646398,1759296668006,-1000.0,0.00024383,3]
[388646399,1759296668016,-1000.0,0.00024383,3]
[388646400,1759296668025,-338.62661631,0.00024383,3]
[388646401,1759296668035,-1148.73866239,0.00024385,2]
[388646402,1759296668044,-1148.73866239,0.00024406,2]
[388646403,1759296668054,-1148.73866239,0.00024428,2]
[388646404,1759296668064,-150.0,0.00024438,4]
[388646405,1759296668073,-214.93492873,0.00024438,4]
[388646406,1759296668082,-179.6093019,0.00024438,4]
[388646407,1759296668091,-283.51345767,0.00024438,4]
[388646408,1759296668100,-1148.73866239,0.00024449,2]
[388646409,1759296668110,-300.0,0.00024456,2]
[388646410,1759296668119,-1281033.06493309,0.00024457,2]
[388646411,1759296668128,-15015.0,0.00024463,7]
[388646412,1759296668138,-1148.73866239,0.00024471,2]
[388646413,1759296668147,-630.80881729,0.00024476,2]
[388646414,1759296668157,-1148.73866239,0.00024492,2]
[388646415,1759296668167,-1148.73866239,0.00024514,2]
[388646416,1759296668176,-1148.73866239,0.00024535,2]
[388646417,1759296668186,-1148.73866239,0.00024557,2]
[388646418,1759296668196,-1896.07,0.000246,7]
[388646419,1759296668205,-5022.0,0.00024649,2]
[388646420,1759296668214,-300.0,0.00024656,2]
[388646421,1759296668224,-306.70279572,0.00024656,2]
[388646422,1759296668233,-500.0,0.00024657,2]
[388646423,1759296668242,-3882.67,0.00024657,2]
[388646424,1759296668252,-151.899858,0.00024657,2]
[388646425,1759296668262,-1499.373196,0.00024657,2]
[388646426,1759296668272,-152.336038,0.00024657,2]
[388646427,1759296668281,-2998.746394,0.00024657,2]
[388646428,1759296668290,-152.336038,0.00024657,2]
[388646429,1759296668300,-309.75945,0.00024657,2]
[388646430,1759296668309,-198.101096,0.00024657,2]
[388646431,1759296668318,-2544.726331,0.00024657,2]
[388646432,1759296668327,-2529.917035,0.00024657,2]
[388646433,1759296668336,-2035.781065,0.00024657,2]
[388646434,1759296668345,-344.79909495,0.00024657,2]
[388646435,1759296668355,-500.0,0.00024657,2]
[388646436,1759296668364,-1941.31,0.00024657,2]
[388646437,1759296668374,-500.0,0.00024657,2]
[388646438,1759296668383,-500.0,0.00024657,2]
[388646439,1759296668393,-500.0,0.00024657,2]
[388646440,1759296668402,-500.0,0.00024657,2]
[388646441,1759296668412,-500.0,0.00024657,2]
[388646442,1759296668422,-500.0,0.00024657,2]
[388646443,1759296668432,-500.0,0.00024657,2]
[388646444,1759296668442,-500.0,0.00024657,2]
[388646445,1759296668452,-500.0,0.00024657,2]
[388646446,1759296668461,-500.0,0.00024657,2]
[388646447,1759296668471,-500.0,0.00024657,2]
[388646448,1759296668481,-832.7,0.00024657,2]
[388646449,1759296668490,-500.0,0.00024657,2]
[388646450,1759296668500,-500.0,0.00024657,2]
[388646451,1759296668509,-500.0,0.00024657,2]
[388646452,1759296668520,-500.0,0.00024657,2]
[388646453,1759296668529,-500.0,0.00024657,2]
[388646454,1759296668538,-500.0,0.00024657,2]
[388646455,1759296668548,-500.0,0.00024657,2]
[388646456,1759296668787,-500.0,0.00024657,2]
[388646457,1759296668797,-500.0,0.00024657,2]
[388646458,1759296668806,-500.0,0.00024657,2]
[388646459,1759296668816,-500.0,0.00024657,2]
[388646460,1759296668826,-500.0,0.00024657,2]
[388646461,1759296668835,-500.0,0.00024657,2]
[388646462,1759296668845,-500.0,0.00024657,2]
[388646463,1759296668855,-500.0,0.00024657,2]
[388646464,1759296668864,-264.42950869,0.00024657,2]
[388646465,1759296668873,-500.0,0.00024657,2]
[388646466,1759296668884,-500.0,0.00024657,2]
[388646467,1759296668894,-500.0,0.00024657,2]
[388646468,1759296668904,-500.0,0.00024657,2]
[388646469,1759296668914,-1950.42,0.00024657,2]
[388646470,1759296668923,-500.0,0.00024657,2]
[388646471,1759296668934,-972.72,0.00024657,2]
[388646472,1759296668943,-833.01,0.00024657,2]
[388646473,1759296668953,-500.0,0.00024657,2]
[388646474,1759296668962,-500.0,0.00024657,2]
[388646475,1759296668972,-500.0,0.00024657,2]